Cogmind - Beta 16.1 @@@ ROGUE MODE // 2026.02.23 @ 23:46:01 Player: Bort Result: Destroyed by M2-7TY(R) with Subdweller Machine Gun Performance ------------- Evolutions (0) 0 Regions Visited (2) 400 Robots Destroyed (4) 20 Value Destroyed (70) 70 Prototype IDs (0) 0 Alien Tech Used (0) 0 Bonus (0) 0 TOTAL SCORE: 490 Bonus ------- None Cogmind --------- Core Integrity 0/250 Matter 209/300 Energy 85/100 System Corruption 0% Temperature Cool (0) Movement Core (200) Ox3 Location -10/Subcaves Parts ------- > --- POWER (1) -------- (None) > --- PROPULSION (2) --- (None) > --- UTILITY (2) ------ (None) > --- WEAPON (2) ------- Barrage Gun Bore Cannon > --- INVENTORY (5) ---- Medium Storage Unit Particle Gun Peak State ------------ > --- POWER ------------ Ion Engine > --- PROPULSION ------- Aluminum Leg Aluminum Leg > --- UTILITY ---------- Scrap Shield > --- WEAPON ----------- Heavy EM Pulse Gun Barrage Gun > --- INVENTORY -------- Medium Storage Unit Particle Gun [Rating: 12] Favorites ----------- Power Ion Engine Engine Ion Engine Propulsion Aluminum Leg Leg Aluminum Leg Flight Unit VTOL Module Utility Small Storage Unit Storage Small Storage Unit Protection Scrap Shield Weapon Heavy EM Pulse Gun Energy Gun Heavy EM Pulse Gun Ballistic Gun Assault Rifle Ballistic Cannon Bore Cannon Build | -11 -10 -10 ------- Run | Yrd Mat Sub Slots Evolved . | . . . Power . | . . . Propulsion . | . . . Utility . | . . . Weapon . | . . . Parts Attached 14 | 6 5 3 Power 1 | 1 . . Engine 1 | 1 . . Core . | . . . Reactor . | . . . Propulsion 4 | 2 2 . Treads . | . . . Leg 2 | 2 . . Wheel . | . . . Hover . | . . . Flight 2 | . 2 . Utility 3 | 1 1 1 Device . | . . . Storage 2 | 1 1 . Processor . | . . . Hackware . | . . . Protection 1 | . . 1 Artifact . | . . . Weapon 6 | 2 2 2 Energy Gun 3 | 1 2 . Energy Cannon . | . . . Ballistic Gun 2 | 1 . 1 Ballistic Cannon 1 | . . 1 Launcher . | . . . Special Weapon . | . . . Impact Weapon . | . . . Slashing Weapon . | . . . Piercing Weapon . | . . . Special Melee Weapon . | . . . Unidentified Prototypes . | . . . Parts Lost 5 | . . 5 Power 1 | . . 1 Propulsion 2 | . . 2 Utility 1 | . . 1 Weapon 1 | . . 1 Highest Loss Streak 5 | . . 5 To Critical Strikes . | . . . Average Backups . | . . 1 Power . | . . . Propulsion . | . . . Utility . | . . . Weapon . | . . . Tool/Special . | . . . Unused Backups 2 | 1 1 . Power . | . . . Propulsion . | . . . Utility 1 | . 1 . Weapon 1 | 1 . . Tool/Special . | . . . Average Slot Usage (%) 84 | . 85 83 Engine 14 | . 14 14 Leg 26 | . 26 28 Flight 1 | . 2 . Storage 8 | . 14 2 Protection 4 | . . 10 Energy Gun 23 | . 25 20 Ballistic Gun 4 | . 2 7 Peak Build Rating 12 | 6 10 12 Average Rating 8 | 5 7 10 On Entrance 4 | . 6 8 Avg Prop Armor Cover (%) . | . . . Naked Turns . | . . . Heaviest Build 29 | 14 21 29 Greatest Support 20 | 20 20 20 Greatest Overweight (x) 2 | . 1 2 Average Overweight (x) . | . . . Largest Inventory Capacity 10 | 8 10 10 Average Capacity 7 | 7 8 5 Most Carried 5 | 5 2 3 Average Carried . | . . 1 Final Capacity 10 | 8 10 5 Final Carried 2 | . . 2 Class Distribution -------------------- 100% | Mutant Dominant Class ---------------- Mutant | -10/Materials Mutant | -10/Subcaves Resources | -11 -10 -10 ----------- Run | Yrd Mat Sub Matter Collected 275 | 230 35 10 Remotely . | . . . Salvage Created 87 | . 35 52 Parts 11 | . 7 4 Haulers Intercepted . | . . . Recyclers Shooed 1 | . 1 . Parts Field Recycled . | . . . Retrieved Matter . | . . . Parts Self-Destructed 1 | . . 1 Prevented . | . . . Parts Restored . | . . . Kills | -11 -10 -10 ------- Run | Yrd Mat Sub Combat Hostiles Destroyed 4 | . 3 1 Guns 4 | . 3 1 Classes Destroyed 2 | . 1 1 Swarmer 3 | . 3 . Subdweller 1 | . . 1 Best Kill Streak 3 | . 3 1 Combat Bots Only 3 | . 3 1 Max Kills in Single Turn 1 | . 1 1 Gunslinging . | . . . Exploded . | . . . Melee . | . . . Uniques/NPCs Destroyed . | . . . Combat | -11 -10 -10 -------- Run | Yrd Mat Sub Hostile Shots Fired 67 | . 16 51 Missed 19 | . 3 16 Hits 48 | . 13 35 Projectile 48 | . 13 35 AOE 2 | . . 2 Critical Strikes 1 | . . 1 Damage Taken 918 | . 115 803 Core 258 | . 8 250 Absorbed by Shields . | . . . Core Remaining (%) 100 | 100 . . Volleys Fired 14 | . 5 9 Largest 2 | . 2 2 Hottest 110 | . 110 73 Shots Fired 28 | . 10 18 Gun 28 | . 10 18 Cannon . | . . . Launcher . | . . . Special . | . . . Kinetic 9 | . . 9 Thermal 5 | . 5 . Explosive . | . . . Electromagnetic 14 | . 5 9 Robot Hit Streak 12 | . 2 12 Robot Miss Streak 3 | . 3 1 Penetration Max . | . . . Secondary Targets 1 | . . 1 Max Gunslinging Chain 1 | . . 1 Shots Hit Robots 20 | . 3 17 Core Hits 5 | . 3 2 Critical Kills . | . . . Critical Parts Destroyed . | . . . Critical Strikes 1 | . 1 . Corrupt 1 | . 1 . Melee Attacks . | . . . Impact . | . . . Slashing . | . . . Piercing . | . . . Sneak Attacks . | . . . Combat Hostiles . | . . . Follow-up Attacks . | . . . Damage Inflicted 337 | . 71 266 Guns 336 | . 70 266 Cannons . | . . . Explosions . | . . . Melee . | . . . Ramming 1 | . 1 . Kinetic 151 | . . 151 Thermal 45 | . 45 . Explosive . | . . . Electromagnetic 140 | . 25 115 Impact . | . . . Slashing . | . . . Piercing . | . . . Highest Corruption . | . . . Average Corruption . | . . . Corruption Purged . | . . . Corruption Blocked . | . . . Overload Shots . | . . . Overflow Damage . | . . . Projectiles . | . . . Explosions . | . . . Melee . | . . . Knockbacks . | . . . Impact . | . . . Kinetic . | . . . Secondary . | . . . Self-Inflicted Damage . | . . . Shots . | . . . Rammed . | . . . Targets Rammed 1 | . 1 . Kicked 1 | . 1 . Crushed . | . . . Highest Temperature 202 | . 202 14 Average Temperature 73 | . 97 5 Received Heat Transfer 90 | . . 90 Siege Activations . | . . . Martial Activations . | . . . Shielding Activations . | . . . Robots Disrupted . | . . . Combat Hostiles . | . . . Robots Corrupted . | . . . Combat Hostiles . | . . . Parts Fried . | . . . Impact Corruptions . | . . . Robots Melted . | . . . Combat Hostiles . | . . . Parts Melted . | . . . Heat Transferred 111 | . 111 . Parts Sabotaged . | . . . Parts Stolen . | . . . Parts Stripped . | . . . Power Chain Reactions . | . . . Alert | -11 -10 -10 ------- Run | Yrd Mat Sub Maximum Alert Level . | . . . Low Security (%) 100 | 100 100 . Level 1 . | . . . Level 2 . | . . . Level 3 . | . . . Level 4 . | . . . Level 5 . | . . . High Security . | . . . Max Security . | . . . Peak Influence 60 | . 60 . Initial . | . . . Average 10 | . 13 . Influence Increases 70 | . 70 . Destroy 0b10 Robot/C 60 | . 60 . Destroy Leader 10 | . 10 . Influence Decreases 70 | . 70 . Time Decay 70 | . 70 . Squads Dispatched . | . . . Investigation . | . . . Extermination . | . . . Reinforcement . | . . . Assault . | . . . Garrison . | . . . Intercept . | . . . Searches Triggered . | . . . Construction Impeded . | . . . Haulers Reinforced . | . . . Active Scanning Responses . | . . . Cargo Convoy Interrupts . | . . . Stealth | -11 -10 -10 --------- Run | Yrd Mat Sub Distress Signals . | . . . Communications Jammed . | . . . Distress Signals . | . . . Times Spotted 13 | . 3 10 Peak Tracking Total 8 | . 3 8 Tactical Retreats . | . . . Traps | -11 -10 -10 ------- Run | Yrd Mat Sub Traps Triggered . | . . . Indirectly . | . . . Trap Hack Attempts . | . . . Triggered . | . . . Disarmed . | . . . Reprogrammed . | . . . Reused . | . . . Traps Extracted . | . . . Installed . | . . . Triggered . | . . . Machines | -11 -10 -10 ---------- Run | Yrd Mat Sub Machines Disabled . | . . . Max in Single Turn . | . . . Machines Repaired . | . . . Machines Dismantled . | . . . Machines Sabotaged . | . . . Overloaded Fab Kills . | . . . Hacking | -11 -10 -10 --------- Run | Yrd Mat Sub Machines Accessed 1 | . 1 . Terminals 1 | . 1 . Fabricators . | . . . Repair Stations . | . . . Recycling Units . | . . . Scanalyzers . | . . . Garrison Access . | . . . Total Hacks 1 | . 1 . Successful . | . . . Failed 1 | . 1 . Catastrophic . | . . . Database Lockouts . | . . . Manual . | . . . Terminals 1 | . 1 . Fabricators . | . . . Repair Stations . | . . . Recycling Units . | . . . Scanalyzers . | . . . Garrison Access . | . . . Terminal Hacks . | . . . Fabricator Hacks . | . . . Repair Station Hacks . | . . . Recycling Unit Hacks . | . . . Scanalyzer . | . . . Garrison Access Hacks . | . . . Unauthorized Hacks . | . . . Terminals . | . . . Fabricators . | . . . Repair Stations . | . . . Recycling Units . | . . . Scanalyzers . | . . . Garrison Access . | . . . Data Cores Recovered . | . . . Used . | . . . Hacking Detections . | . . . Full Trace Events . | . . . Feedback Events . | . . . Feedback Blocked . | . . . Robot Schematics Acquired . | . . . Robots Built . | . . . Authchips . | . . . Time . | . . . Total Robot Build Rating . | . . . Part Schematics Acquired . | . . . Parts Built . | . . . Authchips . | . . . Time . | . . . Total Part Build Rating . | . . . Part Studies Acquired . | . . . Parts Repaired . | . . . Time . | . . . Parts Recycled . | . . . Recycled Matter . | . . . Retrieved Matter . | . . . Retrieved Components . | . . . Parts Scanalyzed . | . . . Part Schematics Acquired . | . . . Parts Damaged . | . . . Bothacking | -11 -10 -10 ------------ Run | Yrd Mat Sub Used RIF Installer . | . . . Robots Hacked . | . . . Non-combat . | . . . Combat . | . . . Robot Hacks Applied . | . . . Relay Couplers Released . | . . . Fabnet Peak Effective % . | . . . Robots Rewired . | . . . Allies Hacked . | . . . Hacks Repelled . | . . . Allies | -11 -10 -10 -------- Run | Yrd Mat Sub Total Allies . | . . . Largest Group . | . . . Highest-Rated Group . | . . . Highest-Rated Ally . | . . . Total Orders . | . . . Ally Attacks . | . . . Total Damage . | . . . Kills . | . . . Allies Corrupted . | . . . Allies Melted . | . . . Intel | -11 -10 -10 ------- Run | Yrd Mat Sub Active Infowar (turns) . | . . . Robot Analysis Total . | . . . Derelict Logs Recovered . | . . . Drone Launches . | . . . Drone Recoveries . | . . . Exploration | -11 -10 -10 ------------- Run | Yrd Mat Sub Turns Passed 596 | 95 271 230 Spaces Moved 312 | 74 133 105 Core 11 | 9 . 2 Treads . | . . . Legs 288 | 65 120 103 Wheels . | . . . Hover . | . . . Flight 13 | . 13 . Fastest Speed 50 | 50 112 120 Average Speed 149 | 111 141 185 Slowest Speed 190 | 120 190 190 Overloaded Moves . | . . . Propulsion Burnouts . | . . . Robots Hopped . | . . . Potential Cave-ins . | . . . Cave-ins Triggered . | . . . Exploration Rate (%) 10 | 3 17 11 Regions Visited 2 Branch Regions 1 Pre-discovered Areas . | . . . Known Exits Taken . | . . . Unknown Exits Taken 2 | 1 1 . Scrap Searched . | . . . Spaces Dug . | . . . Terrain Destroyed . | . . . Melee . | . . . Projectile . | . . . AOE . | . . . Terrain Rammed . | . . . Walls Destroyed . | . . . Machines Disabled . | . . . Actions | -11 -10 -10 --------- Run | Yrd Mat Sub Total 413 | 87 204 122 Wait 48 | . 47 1 Move 310 | 73 132 105 Hop . | . . . Pick Up 16 | 7 6 3 Fast Attach . | . . . Attach 8 | 6 . 2 Detach 1 | . . 1 Swap 8 | . 7 1 Drop 7 | 1 6 . Fire 14 | . 5 9 Melee . | . . . Ram . | . . . Kick 1 | . 1 . Crush . | . . . Escape Stasis . | . . . Rewire . | . . . Trap . | . . . Miscellaneous . | . . . Route ------- -11/Scrapyard -10/Materials -10/Subcaves (discovered 1 exit: [*Mat]) History --------- Turn | Location | Event 3 | -11/Scrapyard | Discovered new exit (range 16) 96 | -11/Scrapyard | Entered Materials 267 | -10/Materials | Discovered new exit (range 6) 316 | -10/Materials | Build established: Mutant 367 | -10/Materials | Entered Subcaves 368 | -10/Subcaves | Approached by a straggling Scientist 465 | -10/Subcaves | Shifting Twisted Machinery released Barrage Gun 524 | -10/Subcaves | Discovered new exit (range 15) 530 | -10/Subcaves | Ambushed by Subdwellers from Twisted Machinery 553 | -10/Subcaves | Ambushed by swarm of Subdwellers 555 | -10/Subcaves | Ambushed by Subdwellers from Twisted Machinery 589 | -10/Subcaves | Core integrity fell below 50% 593 | -10/Subcaves | Core integrity fell below 20% 597 | -10/Subcaves | Destroyed by M2-7TY(R) with Subdweller Machine Gun Last Messages --------------- 00564_ Tech Extrapolator violently self-destructs. 00567_ 5I-7IR(R) destroyed. 00572_ Subatomizers dissect the Sub. Power Source. 00572_ FG-SE9(g) destroyed. 00575_ U3-N0H(R) affixes Scrap Shield Fragment to Scrap Shield. 00576_ 11-9AL(g) destroyed. 00577_ U3-N0H(R) destroyed. 00577_ Switching to secondary target: VC-684(R). 00578_ 2M-ZDO(R) misfires. 00578_ Scrap Shield destroyed. 00582_ 2M-ZDO(R) affixes Scrap Shield Fragment to Scrap Shield. 00585_ Subatomizers dissect the Sub. Power Source. 00586_ Hvy. EM Pulse Gun destroyed. 00590_ Aluminum Leg destroyed. 00595_ Ion Engine destroyed. 00595_ Acquired Bore Cannon. 00597_ Subatomizers dissect the Carbon-fiber Leg, destroying it. Map ----- +----------------------------------------------------+ | ?????????????????????????????????????????????????? | | ?????????????????????????????????????????????????? | | ?????????????????????????????????????????????????? | | ?????????????????????????????????????????????????? | | ?????????????????????????????????????????????????? | | ?????????????????????????????????????????????????? | | ?????????????????????????????????????????????????? | | ?????????????????????????????????????????????????? | | ?????????????????????????????????????????????????? | | ?????????????????????????????????????????????????? | | ?????????????????????????????????????????????????? | | ?????????????????????????????????????????????????? | | ?????????????????????????????????????????????????? | | ?????????????????????????????????????????????????? | | ??????????????????????????#######????????????????? | | ?????????????????????###### #####????????????? | | ????????????????????## ## ? #????????????? | | ????????????????????# ?? #????????????? | | ???????????????????## # ###? #????????????? | | ???????????????????? ; # ## #????????????? | | ????????????##??????# ## #????????????? | | ????????????# %"?#### # ### #????????????? | | ?????????????#""=#=! R #?#####??????? | | ?????????????# <%]==*!R %&% ### ####???? | | ?????????????#"""* [%%R *%%* ; ### ##??? | | ????????????#"""% %#RR @=% ; ### #??? | | ????????????"""" ### ; # ##?? | | ????????????""" "#?# ### # ## #?? | | ?????????????"" "??# #???## ## ##?? | | ????????????""##??# #????## ##??? | | ????????????"?????# ????## #???? | | ??????????????????# ## ### #???? | | ??????????????????## ### #???? | | ???????????????????##??# ""## ##???? | | ??????????????????????? #?# #????? | | ??????????????????????? #### ##??# "" #????? | | ???????????????????????#???####???# ""#????? | | ??????????????????????????????????## ""#####? | | ???????????????????????????????????## "% #" # #? | | ????????????????????????????????????##""" "" #? | | ?????????????????????????????????????##""" " #? | | ???????????????????????????????????#####"## "##? | | ??????????????????????????????????##" ######## "#? | | ??????????????????????????????????# #?????# #? | | ??????????????????????????????????# ##????# ##? | | ???????????????????????????????????# ###?## #? | | ??????????????????????????????????## #?# ##? | | ?????????????????????????????????## #?## ### | | ?????????????????????????????????# #### | | ?????????????????????????????????## #### # | +----------------------------------------------------+ Best States ------------- Heat Dissipation 25 Energy Generation 10 Energy Capacity 250 Matter Stores 270 Matter Capacity 300 Sight Range 16 Terrain Scan Density 10 Armor Coverage 800 Evasion (%) 55 Item Schematics ----------------- None Robot Schematics ------------------ None Fabricated ------------ Nothing Repaired ---------- Nothing Studied --------- None Alien Tech Used ----------------- None Achievements -------------- None Challenges ------------ None Game ------ Seed SigixCobblerTether Manual? 0 Play Time 00:08:13 Cumulative 6.0 hours Start 2026.02.23 @ 23:40:12 End 2026.02.23 @ 23:46:01 Sessions 1 Manual Loads 0 Difficulty Rogue Special Mode None Game No. 19 Rogue 19 Adventurer 0 Explorer 0 Win Type - Total 0 Types 0/0/0/0/0/0/0/0/0/0 Lore% 8 Gallery% 12 Achievement% 7 Wizard Run 0 Options --------- Layout 1 ASCII 0 Keyboard 0 Movement Numpad Keybinds 0 Fullscreen 1 Font 36/Cog Map View 55x38 Zoom Use 0% Tactical HUD 1 Map Filters NONE Filters NONE Steam 1 RUN: 3be5d84c-7fa6-45c6-b886-b17ae1ee223d